bitfinex-derivatives/quotes_ETHF0:USTF0_20250420
["timestamp","ask_amount","ask_price","bid_price","bid_amount"]
[1745156376277,3.02221,1579.1,1579.0,4.21]
[1745156377981,1.7557,1579.1,1579.0,4.21]
[1745156378181,3.02221,1579.1,1579.0,4.21]
[1745156378380,3.02221,1579.1,1579.0,5.875]
[1745156378882,1.7557,1579.1,1579.0,5.875]
[1745156379181,3.02221,1579.1,1579.0,5.875]
[1745156379371,1.7557,1579.1,1579.0,7.14159]
[1745156379678,3.02221,1579.1,1579.0,5.875]
[1745156380677,3.02221,1579.1,1579.0,4.21]
[1745156381270,3.02221,1579.1,1579.0,5.9729]
[1745156382478,1.7557,1579.1,1579.0,5.9729]
[1745156382680,4.0128,1579.4,1579.0,10.9729]
[1745156382870,1.26636,1579.3,1579.1,7.96328]
[1745156383069,4.8548,1579.4,1579.2,3.03181]
[1745156383275,6.12107,1579.4,1579.3,5.9284]
[1745156383476,6.12107,1579.4,1579.3,6.7815]
[1745156385496,6.32654927,1579.5,1579.3,11.7815]
[1745156385785,6.32654927,1579.5,1579.4,3.90217]
[1745156387078,6.32654927,1579.5,1579.4,2.6359]
[1745156387378,8.05884927,1579.5,1579.4,3.90217]
[1745156388287,0.01156399,1579.6,1579.5,1.26619]
[1745156388490,0.01156399,1579.6,1579.5,3.82649]
[1745156388783,0.01156399,1579.6,1579.5,7.03429]
[1745156389184,0.01156399,1579.6,1579.5,5.7681]
[1745156389483,3.05497399,1579.6,1579.5,5.7681]
[1745156389980,3.05497399,1579.6,1579.5,2.5603]
[1745156390182,1.78886399,1579.6,1579.5,5.7681]
[1745156390377,3.05497399,1579.6,1579.5,3.2078]
[1745156390672,3.89317399,1579.6,1579.5,3.2078]
[1745156391379,3.89322399,1579.6,1579.4,1.7585]
[1745156391582,1.7773,1579.5,1579.4,1.7585]
[1745156391895,1.7773,1579.5,1579.4,4.71877]
[1745156394283,0.01156399,1579.6,1579.4,4.71877]
[1745156394480,1.27770399,1579.6,1579.5,4.945]
[1745156394978,1.27770399,1579.6,1579.5,3.2078]
[1745156395176,5.14310399,1579.6,1579.5,3.2078]
[1745156395991,5.14310399,1579.6,1579.4,1.7585]
[1745156396288,1.27770399,1579.6,1579.5,3.2078]
[1745156396896,1.27770399,1579.6,1579.4,1.7585]
[1745156397101,1.26619,1579.5,1579.4,1.7585]
[1745156397395,0.01156399,1579.6,1579.4,4.9663]
[1745156397595,1.26619,1579.5,1579.4,0.8705]
[1745156398083,2.12599,1579.5,1579.4,0.8705]
[1745156398289,2.12599,1579.5,1579.3,6.7403]
[1745156398601,2.12599,1579.5,1579.3,4.9856]
[1745156398786,1.26627,1579.4,1579.3,4.163]
[1745156399193,1.26635,1579.3,1579.2,4.0304]
[1745156399396,1.26635,1579.3,1579.2,7.3698]
[1745156401996,1.26635,1579.3,1579.2,4.162]
[1745156403298,0.8598,1579.5,1579.2,4.162]
[1745156403495,0.8598,1579.5,1579.4,1.26627]
[1745156403696,2.12603,1579.5,1579.3,3.0155]
[1745156404601,0.8598,1579.5,1579.4,1.26627]
[1745156404801,4.48553399,1579.6,1579.4,1.26627]
[1745156405001,4.48553399,1579.6,1579.5,5.42819]
[1745156405207,0.01156399,1579.6,1579.5,7.3698]
[1745156405494,0.01156399,1579.6,1579.5,8.63599]
[1745156405695,0.01156399,1579.6,1579.5,10.37969]
[1745156406794,2.08351,1579.9,1579.7,1.26603]
[1745156406994,1.26591,1579.9,1579.8,5.0336]
[1745156407498,1.26591,1579.9,1579.8,6.7465]
[1745156408998,1.26591,1579.9,1579.8,5.0336]
[1745156409808,1.26591,1579.9,1579.8,4.162]
[1745156411798,0.01424927,1580.0,1579.9,1.26587]
[1745156412000,0.01424927,1580.0,1579.9,6.16457]
[1745156412305,0.01424927,1580.0,1579.9,7.86377]
[1745156412512,6.22747,1580.3,1580.1,1.2657]
[1745156412808,5.36197,1580.3,1580.2,4.154]
[1745156413102,5.36201,1580.3,1580.2,4.154]
[1745156413703,9.0964,1580.3,1579.9,4.154]
[1745156414006,1.26576,1580.1,1579.9,8.62767]
[1745156414205,1.26579,1580.0,1579.9,7.3618]
[1745156414401,1.26579,1580.0,1579.9,4.154]
[1745156415208,3.84329,1580.0,1579.9,4.154]
[1745156417109,6.07129,1580.0,1579.9,4.154]
[1745156417309,3.49379,1580.0,1579.9,4.154]
[1745156418212,5.14089,1580.0,1579.9,4.154]
[1745156419217,2.91289,1580.0,1579.9,4.154]
[1745156421714,2.91289,1580.0,1579.9,5.8787]
[1745156422409,1.6956,1580.1,1579.9,9.0865]
[1745156422410,1.26576,1580.1,1579.9,9.0865]
[1745156422717,1.26576,1580.1,1580.0,2.6149]
[1745156422902,1.26576,1580.1,1580.0,3.4543]
[1745156423299,1.7081,1580.2,1580.0,3.4543]
[1745156423513,1.26571,1580.1,1580.0,3.4543]
[1745156424412,1.7081,1580.2,1580.0,3.4543]
[1745156424613,1.26571,1580.1,1580.0,3.4543]
[1745156425317,1.7081,1580.2,1580.0,3.4543]
[1745156425613,1.26571,1580.1,1580.0,1.7022]
[1745156427013,2.87051,1580.1,1580.0,1.7022]
[1745156427212,2.87051,1580.1,1580.0,0.8628]
[1745156427406,2.87051,1580.1,1579.9,4.154]
[1745156427407,1.26579,1580.0,1579.9,4.154]
[1745156427612,3.71149,1580.0,1579.9,4.154]
[1745156427816,3.71149,1580.0,1579.9,7.3618]
[1745156428011,3.71149,1580.0,1579.9,4.154]
[1745156429015,3.2078,1580.4,1579.9,4.154]
[1745156429219,1.7043,1580.3,1580.0,1.26577]
[1745156429519,1.26563,1580.2,1580.1,0.8811]
[1745156429720,1.26563,1580.2,1580.1,1.6958]
[1745156430112,1.26563,1580.2,1580.1,0.8811]
[1745156430318,2.96991,1580.3,1580.1,0.8811]
[1745156430514,2.96991,1580.3,1580.2,4.153]
[1745156431225,5.19791,1580.3,1580.2,4.153]
[1745156432222,2.96991,1580.3,1580.2,4.153]
[1745156433025,3.17878732,1580.5,1580.4,1.26547]
[1745156433026,0.01511732,1580.5,1580.4,1.26547]
[1745156433216,1.73411732,1580.5,1580.4,1.26547]
[1745156433522,1.73411732,1580.5,1580.4,2.09837]
[1745156434220,3.96211732,1580.5,1580.4,2.09837]
[1745156434431,2.24311732,1580.5,1580.4,2.09837]
[1745156435115,5.8811164,1580.7,1580.6,1.26531]
[1745156435116,4.2128164,1580.7,1580.6,1.26531]
[1745156435315,4.2128164,1580.7,1580.6,8.62511]
[1745156435521,9.75983567,1581.0,1580.9,1.26507]
[1745156435723,9.75983567,1581.0,1580.9,105.10687]
[1745156435919,9.75983567,1581.0,1580.9,100.634]
[1745156436125,9.75983567,1581.0,1580.9,105.10687]
[1745156436319,10.06020567,1581.0,1580.9,105.10687]
[1745156436723,10.06020567,1581.0,1580.9,103.8418]
[1745156436927,10.06020567,1581.0,1580.9,105.10687]
[1745156437224,7.83220567,1581.0,1580.9,105.10687]
[1745156437530,1.6683,1581.2,1581.0,1.26496]
[1745156437720,2.93313,1581.2,1581.1,3.2078]
[1745156437913,10.09527278,1581.2,1581.1,3.2078]
[1745156438118,12.32327278,1581.2,1581.1,3.2078]
[1745156438322,13.58810278,1581.2,1581.1,3.2078]
[1745156438525,1.26491,1581.1,1580.9,100.634]
[1745156438719,1.6061,1581.0,1580.9,100.634]
[1745156439220,12.26107278,1581.0,1580.9,100.634]
[1745156440427,12.26107278,1581.0,1580.9,103.8418]
[1745156440930,2.228,1581.0,1580.9,105.10687]
[1745156442428,1.72190769,1581.4,1581.0,1.26497]
[1745156442725,1.7318,1581.3,1581.1,4.47267]
[1745156442927,1.7318,1581.3,1581.2,4.345]
[1745156443117,11.42352278,1581.3,1581.2,4.345]
[1745156443324,13.65152278,1581.3,1581.2,4.345]
[1745156443919,12.38677278,1581.3,1581.2,4.345]
[1745156444120,13.65152278,1581.3,1581.2,4.345]
[1745156444428,21.85932278,1581.3,1581.2,4.345]
[1745156445127,1.26487,1581.2,1581.0,5.60998]
[1745156445332,1.7732,1581.1,1581.0,5.60998]
[1745156445825,10.20017278,1581.1,1581.0,5.60998]
[1745156446035,6.70061,1581.3,1581.1,1.2649]
[1745156446224,3.03806,1581.2,1581.0,7.83796]
[1745156446424,1.7732,1581.1,1581.0,7.83796]
[1745156446624,1.7732,1581.1,1581.0,9.47086]
[1745156449736,1.7732,1581.1,1581.0,10.35896]
[1745156450033,2.98658769,1581.4,1581.2,1.2648]
[1745156450232,1.7431,1581.3,1581.2,1.2648]
[1745156450434,1.7431,1581.3,1581.2,7.3779]
[1745156450834,0.84250769,1581.4,1581.2,7.37787]
[1745156451139,2.58560769,1581.4,1581.3,6.24165]
[1745156451632,1.76190769,1581.4,1581.3,7.06875]
[1745156451836,0.01880769,1581.4,1581.3,7.06875]
[1745156452133,0.01880769,1581.4,1581.3,3.2078]
[1745156452633,1.76190769,1581.4,1581.3,4.47255]
[1745156452837,0.01880769,1581.4,1581.3,6.94135]
[1745156453421,1.74110769,1581.4,1581.3,6.94135]
[1745156453740,1.26475,1581.3,1581.2,6.572]
[1745156453930,1.6919,1581.3,1581.2,6.572]
[1745156454129,11.84117278,1581.3,1581.2,6.572]
[1745156454530,11.84117278,1581.3,1581.2,7.83683]
[1745156456239,3.4142,1581.3,1581.2,7.83683]
[1745156456631,3.4142,1581.3,1581.2,9.47243]
[1745156458045,11.84117278,1581.3,1581.2,6.572]
[1745156458436,11.84117278,1581.3,1581.2,7.83683]
[1745156458738,13.10592278,1581.3,1581.2,6.572]
[1745156459337,18.10592278,1581.3,1581.2,2.228]
[1745156461646,13.10592278,1581.3,1581.2,2.228]
[1745156462962,3.4142,1581.3,1581.2,2.228]
[1745156463161,1.7223,1581.3,1581.2,3.49283]
[1745156463361,1.64770769,1581.4,1581.3,1.26475]
[1745156463759,4.51857769,1581.4,1581.3,1.26475]
[1745156463962,4.51857769,1581.4,1581.2,3.9423]
[1745156464263,1.6062,1581.3,1581.2,3.49283]
[1745156464966,11.29792278,1581.3,1581.2,2.228]
[1745156468162,16.29792278,1581.3,1581.2,2.228]
[1745156468354,1.26483,1581.2,1581.1,7.5518]
[1745156468559,2.96863,1581.2,1581.1,7.5518]
[1745156468860,1.26499,1581.0,1580.9,96.482]
[1745156469068,1.26507,1580.9,1580.8,4.35349638]
[1745156469261,2.96887,1580.9,1580.8,4.35349638]
[1745156469456,11.39584278,1580.9,1580.8,4.35349638]
[1745156471160,2.96887,1580.9,1580.8,4.35349638]
[1745156471770,1.7038,1580.9,1580.8,5.61864638]
[1745156471961,1.7038,1580.9,1580.8,7.25454638]
[1745156472162,1.7038,1580.9,1580.8,5.98939638]
[1745156472463,2.96887,1580.9,1580.8,5.98939638]
[1745156472857,2.96887,1580.9,1580.8,7.25454638]
[1745156473468,2.96887,1580.9,1580.8,5.98939638]
[1745156474667,2.96887,1580.9,1580.8,4.35349638]
[1745156475468,11.39584278,1580.9,1580.8,4.35349638]
[1745156478771,19.60364278,1580.9,1580.8,4.32849638]
[1745156479269,19.60364278,1580.9,1580.8,0.00949638]
[1745156480062,14.60364278,1580.9,1580.8,0.00949638]
[1745156480467,19.60364278,1580.9,1580.8,0.00949638]
[1745156480771,19.60364278,1580.9,1580.4,3.41882722]
[1745156480772,1.26539,1580.5,1580.4,3.41882722]
[1745156480962,4.47319,1580.5,1580.4,3.41882722]
[1745156481170,4.47319,1580.5,1580.4,5.64682722]
[1745156481862,6.15929,1580.5,1580.4,5.64682722]
[1745156483373,4.8939,1580.5,1580.4,6.91229722]
[1745156483575,1.6861,1580.5,1580.4,8.65039722]
[1745156483770,3.3622,1580.5,1580.4,8.65039722]
[1745156484269,4.62759,1580.5,1580.4,8.65039722]
[1745156484473,4.62759,1580.5,1580.4,7.38492722]
[1745156485375,2.4845,1580.5,1580.4,8.65039722]
[1745156485671,2.94149,1580.5,1580.4,7.38492722]
[1745156486771,3.78409,1580.5,1580.4,7.38492722]
[1745156490976,1.26539,1580.5,1580.4,7.38492722]
[1745156491281,1.26539,1580.5,1580.4,8.24852722]
[1745156491886,3.00359,1580.5,1580.4,5.64682722]
[1745156492383,3.00359,1580.5,1580.4,2.228]
[1745156499775,1.26547,1580.4,1580.3,3.21049638]
[1745156499980,3.82927,1580.4,1580.3,3.21049638]
[1745156501388,3.82927,1580.4,1580.3,5.68249638]
[1745156501787,1.26555,1580.3,1580.2,2.228]
[1745156501983,3.87365,1580.3,1580.2,2.228]
[1745156510092,3.87365,1580.3,1580.2,3.8807]
[1745156510295,10.38132,1580.4,1580.2,8.8807]
[1745156510495,10.38132,1580.4,1580.3,1.7343]
[1745156510693,7.17347,1580.4,1580.3,1.7343]
[1745156512489,1.26547,1580.4,1580.3,1.7343]
[1745156516703,4.47327,1580.4,1580.3,1.7343]
[1745156517004,1.26555,1580.3,1580.2,2.228]
[1745156517205,2.92135,1580.3,1580.2,3.906]
[1745156517502,3.79935,1580.3,1580.2,5.17163]
[1745156517801,2.5338,1580.3,1580.2,5.17163]
[1745156518395,3.79935,1580.3,1580.2,2.228]
[1745156518703,3.79935,1580.3,1580.2,5.17163]
[1745156518904,3.79935,1580.3,1580.2,3.906]
[1745156519297,2.5338,1580.3,1580.2,5.17163]
[1745156520005,1.6558,1580.3,1580.2,5.17163]
[1745156521611,2.92135,1580.3,1580.2,5.17163]
[1745156521906,2.92135,1580.3,1580.2,3.906]
[1745156522308,2.92135,1580.3,1580.2,5.17163]
[1745156522909,1.6558,1580.3,1580.2,5.17163]
[1745156523803,2.92135,1580.3,1580.2,5.17163]
[1745156524011,1.6558,1580.3,1580.2,5.17163]
[1745156525212,2.92135,1580.3,1580.2,5.17163]
[1745156525408,1.6558,1580.3,1580.2,5.17163]
[1745156526113,2.92135,1580.3,1580.2,3.906]
[1745156526311,1.6558,1580.3,1580.2,5.17163]
[1745156526708,0.8457,1580.5,1580.2,3.906]
[1745156527014,1.6436,1580.5,1580.4,1.26547]
[1745156527204,1.6436,1580.5,1580.4,5.55047]
[1745156527405,1.6436,1580.5,1580.4,7.23757]
[1745156528118,2.90899,1580.5,1580.4,9.46557]
[1745156528416,1.6436,1580.5,1580.4,9.46557]
[1745156530117,1.6436,1580.5,1580.4,11.24457]
[1745156532218,2.90899,1580.5,1580.4,6.513]
[1745156533319,2.90899,1580.5,1580.4,7.77847]
[1745156533516,1.6436,1580.5,1580.4,7.77847]
[1745156533820,2.90899,1580.5,1580.4,9.50657]
[1745156536723,2.90899,1580.5,1580.4,6.513]
[1745156537224,1.6436,1580.5,1580.4,7.77847]
[1745156537419,2.90899,1580.5,1580.4,6.513]
[1745156538423,7.90899,1580.5,1580.4,2.228]
[1745156542036,2.90899,1580.5,1580.4,2.228]
[1745156550738,2.90899,1580.5,1580.4,0.84702]
[1745156556338,6.11679,1580.5,1580.4,0.84702]
[1745156557948,1.26555,1580.3,1580.2,4.223]
[1745156558151,4.47335,1580.3,1580.2,4.223]
[1745156558651,7.09885,1580.3,1580.2,4.223]
[1745156559151,7.09885,1580.3,1580.2,6.451]
[1745156561349,7.09885,1580.3,1580.2,2.228]
[1745156566854,7.09885,1580.3,1580.2,3.9047]
[1745156568462,4.47335,1580.3,1580.2,3.9047]
[1745156568766,4.47335,1580.3,1580.2,4.7618]
[1745156569361,4.47335,1580.3,1580.2,2.228]
[1745156569662,4.47335,1580.3,1580.2,4.766]
[1745156573561,4.47335,1580.3,1580.2,2.228]
[1745156573765,6.16725,1580.3,1580.2,2.228]
[1745156575665,2.95945,1580.3,1580.2,2.228]
[1745156575855,6.16725,1580.3,1580.2,2.228]
[1745156582464,6.16725,1580.3,1580.2,0.89651]
[1745156582659,1.26579,1580.0,1579.9,4.203]
[1745156582861,1.26587,1579.9,1579.8,9.17017437]
[1745156584865,2.89337,1579.9,1579.8,9.17017437]
[1745156586467,2.89337,1579.9,1579.8,0.8499]
[1745156587671,1.26595,1579.8,1579.7,6.431]
[1745156587883,2.95335,1579.8,1579.7,6.431]
[1745156588172,2.95335,1579.8,1579.7,6.432]
[1745156589170,11.16115,1579.8,1579.7,2.228]
[1745156589370,6.16115,1579.8,1579.7,2.228]
[1745156591779,4.47375,1579.8,1579.7,2.228]
[1745156593978,5.29965,1579.8,1579.7,2.228]
[1745156596382,5.29965,1579.8,1579.7,0.79761]
[1745156596581,5.29965,1579.8,1579.2,21.02471565]
[1745156596582,1.26635,1579.3,1579.2,21.02471565]
[1745156596779,1.26635,1579.3,1579.2,23.54731565]
[1745156597083,3.2078,1579.5,1579.2,3.78896]
[1745156597084,1.26631,1579.4,1579.2,3.78896]
[1745156597276,1.26631,1579.4,1579.3,1.6505]
[1745156597972,1.26631,1579.4,1579.3,2.4931]
[1745156601776,6.18046,1579.5,1579.3,3.75939]
[1745156601977,6.18046,1579.5,1579.4,1.6314]
[1745156603082,6.18046,1579.5,1579.4,3.8594]
[1745156604481,6.18046,1579.5,1579.4,2.228]
[1745156613296,11.18046,1579.5,1579.4,1e-05]
[1745156615090,17.08846,1579.5,1579.4,1e-05]
[1745156617097,12.08846,1579.5,1579.4,1e-05]
[1745156619101,8.88066,1579.5,1579.4,1e-05]
[1745156619299,12.08846,1579.5,1579.4,1e-05]
[1745156620702,8.88066,1579.5,1579.4,1e-05]
[1745156620902,12.08846,1579.5,1579.4,1e-05]
[1745156624003,8.88066,1579.5,1579.4,1e-05]
[1745156624206,12.08846,1579.5,1579.4,1e-05]
[1745156626111,8.88066,1579.5,1579.4,1e-05]
[1745156626313,12.08846,1579.5,1579.4,1e-05]
[1745156630314,8.88066,1579.5,1579.4,1e-05]
[1745156630515,12.08846,1579.5,1579.4,1e-05]
[1745156635016,8.88066,1579.5,1579.4,1e-05]
[1745156635317,12.08846,1579.5,1579.4,1e-05]
[1745156636619,8.88066,1579.5,1579.4,1e-05]
[1745156636922,12.08846,1579.5,1579.4,1e-05]
[1745156641930,10.38206,1579.5,1579.4,1e-05]
[1745156642119,10.38206,1579.5,1579.4,1.60981]
[1745156643918,16.69123278,1579.5,1579.4,1.60981]
[1745156644426,10.78323278,1579.5,1579.4,1.60981]
[1745156645125,7.57543278,1579.5,1579.4,1.60981]
[1745156645318,10.78323278,1579.5,1579.4,1.60981]
[1745156646632,7.57543278,1579.5,1579.4,1.60981]
[1745156646932,10.78323278,1579.5,1579.4,1.60981]
[1745156647330,4.47406,1579.5,1579.4,1.60981]
[1745156649533,6.16306,1579.5,1579.4,1.60981]
[1745156650532,4.47406,1579.5,1579.4,1.60981]
[1745156650838,3.2078,1579.5,1579.4,2.87608]
[1745156651133,4.47399,1579.5,1579.4,1.60981]
[1745156653537,1.26619,1579.5,1579.4,1.60981]
[1745156653736,4.47399,1579.5,1579.4,1.60981]
[1745156658837,1.26619,1579.5,1579.4,1.60981]
[1745156659036,4.47399,1579.5,1579.4,1.60981]
[1745156661441,4.47399,1579.5,1579.4,1e-05]
[1745156661644,6.07939,1579.5,1579.4,1e-05]
[1745156662736,6.07939,1579.5,1579.4,1.76161]
[1745156663545,6.07939,1579.5,1579.4,1e-05]
[1745156665843,6.07939,1579.5,1579.4,1.75001]
[1745156669246,6.07939,1579.5,1579.4,1e-05]
[1745156669842,2.87159,1579.5,1579.4,1e-05]
[1745156670046,6.07939,1579.5,1579.4,1e-05]
[1745156671051,6.07939,1579.5,1579.4,1.67691]
[1745156671946,6.07939,1579.5,1579.4,1e-05]
[1745156689970,2.87159,1579.5,1579.4,1e-05]
[1745156690172,6.07939,1579.5,1579.4,1e-05]
[1745156702072,2.87159,1579.5,1579.4,1e-05]
[1745156702271,6.07939,1579.5,1579.4,1e-05]
[1745156707681,2.87159,1579.5,1579.4,1e-05]
[1745156707881,6.07939,1579.5,1579.4,1e-05]
[1745156708380,4.8132,1579.5,1579.4,1e-05]
[1745156708581,6.07939,1579.5,1579.4,1.67571]
[1745156710184,10.78303278,1579.7,1579.5,1.26614]
[1745156710383,12.40543278,1579.7,1579.6,1.6953]
[1745156714084,1.26611,1579.6,1579.5,3.0972]
[1745156714282,3.84621,1579.6,1579.5,2.228]
[1745156717383,7.05401,1579.6,1579.5,2.228]
[1745156728194,12.05401,1579.6,1579.5,2.228]
[1745156729291,12.05401,1579.6,1579.5,0.88008]
[1745156729494,1.26635,1579.3,1579.2,12.43327437]
[1745156729683,4.47415,1579.3,1579.2,8.32027437]
[1745156730294,4.47415,1579.3,1579.2,10.54827437]
[1745156731087,4.47415,1579.3,1579.2,2.228]
[1745156732795,5.30725,1579.3,1579.2,2.228]
[1745156738399,7.05985,1579.3,1579.2,2.228]
[1745156745205,6.22675,1579.3,1579.2,2.228]
[1745156746195,7.06895,1579.3,1579.2,2.228]
[1745156746401,4.47415,1579.3,1579.2,2.228]
[1745156746604,4.47415,1579.3,1579.2,3.8833]
[1745156747100,6.22245,1579.3,1579.2,3.8833]
[1745156748313,6.22245,1579.3,1579.2,2.228]
[1745156754323,6.22245,1579.3,1579.2,3.9566]
[1745156755623,6.22245,1579.3,1579.2,2.228]
[1745156763127,1.26651,1579.1,1579.0,1.7093]
[1745156763328,4.47431,1579.1,1579.0,1.7093]
[1745156763727,6.15791,1579.1,1579.0,1.7093]
[1745156764218,6.15791,1579.1,1579.0,3.9373]
[1745156766033,6.15791,1579.1,1579.0,2.228]
[1745156766724,6.66436884,1579.1,1579.0,2.228]
[1745156768330,6.66436884,1579.1,1578.7,3.4238]
[1745156768331,1.26675,1578.8,1578.7,3.4238]
[1745156768523,4.47455,1578.8,1578.7,3.41453972]
[1745156769132,4.47455,1578.8,1578.7,5.64253972]
[1745156769330,6.22485,1578.8,1578.7,5.64253972]
[1745156769521,7.06045,1578.8,1578.7,5.64253972]
[1745156769920,12.96845,1578.8,1578.7,0.34979]
[1745156770230,1.267,1578.5,1578.4,21.02471565]
[1745156770430,4.4748,1578.5,1578.4,21.02471565]
[1745156771331,6.2206,1578.5,1578.4,23.25271565]
[1745156773133,1.26724,1578.2,1578.1,22.8725662]
[1745156773331,4.47504,1578.2,1578.1,2.4702]
[1745156773524,1.26732,1578.1,1578.0,9.17327437]
[1745156773729,3.01822,1578.1,1578.0,9.17327437]
[1745156773928,3.01822,1578.1,1578.0,10.91727437]
[1745156774235,3.01822,1578.1,1578.0,13.14527437]
[1745156775135,4.48455638,1578.2,1578.0,18.14527437]
[1745156775343,3.21729638,1578.2,1578.1,1.744]
[1745156775640,4.48453638,1578.2,1578.1,1.744]
[1745156777132,3.21729638,1578.2,1578.1,6.744]
[1745156777439,0.00949638,1578.2,1578.1,8.01132]
[1745156779642,4.47478,1578.6,1578.4,1.26706]
[1745156779831,4.47478,1578.6,1578.5,6.5823]
[1745156780238,4.47478,1578.6,1578.5,8.8103]
[1745156782042,5.34428,1578.6,1578.5,8.8103]
[1745156782942,5.34428,1578.6,1578.5,4.6953]
[1745156786043,5.34428,1578.6,1578.5,2.228]
[1745156786246,6.20468,1578.6,1578.5,2.228]
[1745156786435,7.87308,1578.6,1578.5,2.228]
[1745156793244,7.87308,1578.6,1578.5,2.2411]
[1745156794950,1.26732,1578.1,1578.0,1.7563]
[1745156795140,4.47512,1578.1,1578.0,3.9843]
[1745156795835,6.09172,1578.1,1578.0,3.9843]
[1745156799855,4.8244,1578.1,1578.0,3.9843]
[1745156800150,6.09172,1578.1,1578.0,3.9843]
[1745156800350,6.09172,1578.1,1578.0,5.5959]
[1745156805652,4.47512,1578.1,1578.0,5.5959]
[1745156810351,1.26728,1578.2,1578.0,5.5959]
[1745156810655,1.26728,1578.2,1578.1,1.7693]
[1745156811256,6.23629,1578.3,1578.1,7.15159]
[1745156811455,4.9691,1578.3,1578.1,5.8843]
[1745156811654,6.23626,1578.3,1578.2,2.6571]
[1745156812256,6.23626,1578.3,1578.2,4.8851]
[1745156813959,4.47496,1578.3,1578.2,4.8851]
[1745156819656,3.2078,1578.3,1578.2,6.15234]
[1745156819855,1.6996,1578.4,1578.2,4.8851]
[1745156820061,2.96673,1578.4,1578.3,2.4863]
[1745156821161,2.96673,1578.4,1578.3,1.6164]
[1745156821367,1.26716,1578.3,1578.2,3.1158]
[1745156821554,3.00566,1578.3,1578.2,4.7322]
[1745156822366,3.00566,1578.3,1578.2,5.99944]
[1745156822565,3.00566,1578.3,1578.2,4.7322]
[1745156823259,3.00566,1578.3,1578.2,2.228]
[1745156823459,6.21346,1578.3,1578.2,2.228]
[1745156823762,4.47496,1578.3,1578.2,2.228]
[1745156823954,4.47496,1578.3,1578.2,3.9716]
[1745156824360,3.2078,1578.3,1578.2,5.23884]
[1745156824566,1.26704,1578.5,1578.2,12.1794]
[1745156824751,1.26704,1578.5,1578.4,1.26708]
[1745156824958,1.26704,1578.5,1578.4,5.38108]
[1745156825267,1.26704,1578.5,1578.4,8.8855]
[1745156825458,2.91124,1578.5,1578.4,8.8855]
[1745156829264,3.78554,1578.5,1578.4,8.8855]
[1745156830761,3.78554,1578.5,1578.4,8.063]
[1745156831168,3.78554,1578.5,1578.4,6.342]
[1745156835154,3.78554,1578.5,1578.4,7.60908]
[1745156835567,3.78554,1578.5,1578.4,9.35388]
[1745156835768,3.78554,1578.5,1578.4,8.0868]
[1745156836165,1.6442,1578.5,1578.4,9.35388]
[1745156836471,1.6442,1578.5,1578.4,12.56168]
[1745156838173,2.9112,1578.5,1578.4,12.56168]
[1745156838372,1.6442,1578.5,1578.4,12.56168]
[1745156838573,2.9112,1578.5,1578.4,12.56168]
[1745156839965,2.9112,1578.5,1578.4,11.2946]
[1745156840667,2.9112,1578.5,1578.4,9.5498]
[1745156841375,2.9112,1578.5,1578.4,2.228]
[1745156842271,6.119,1578.5,1578.4,2.228]
[1745156842467,1.26732,1578.1,1578.0,0.017]
[1745156843173,3.88372,1578.1,1578.0,2.245]
[1745156845878,8.88372,1578.1,1578.0,2.245]
[1745156846688,3.88372,1578.1,1578.0,2.245]
[1745156854000,7.09152,1578.1,1578.0,2.245]
[1745156857401,2.99322,1578.1,1578.0,2.245]
[1745156857792,1.26732,1578.1,1578.0,2.245]
[1745156859301,1.7649,1578.2,1578.0,2.245]
[1745156859302,3.03219,1578.2,1578.0,2.245]
[1745156859498,4.075,1578.3,1578.1,2.5857]
[1745156859793,6.96626,1578.3,1578.2,2.5894]
[1745156860201,6.96626,1578.3,1578.2,1.7568]
[1745156860598,1.26716,1578.3,1578.2,1.7568]
[1745156861302,1.26716,1578.3,1578.2,3.9848]
[1745156861902,1.26716,1578.3,1578.2,2.228]
[1745156862204,2.87006,1578.3,1578.2,2.228]
[1745156865609,2.87006,1578.3,1578.2,3.8879]
[1745156865796,1.26713,1578.4,1578.2,4.6991]
[1745156866001,1.26708,1578.4,1578.3,1.6599]
[1745156866306,1.26708,1578.4,1578.3,2.545]
[1745156868103,2.88838,1578.4,1578.3,2.545]
[1745156868810,2.88838,1578.4,1578.3,1.6599]
[1745156869008,1.26716,1578.3,1578.2,7.9855]
[1745156869217,2.88846,1578.3,1578.2,7.9855]
[1745156869714,2.88846,1578.3,1578.2,3.8725]
[1745156870010,1.26716,1578.3,1578.2,5.4883]
[1745156880016,1.26716,1578.3,1578.2,9.6003]
[1745156881602,2.90906,1578.3,1578.2,9.6003]
[1745156882017,1.26716,1578.3,1578.2,9.6003]
[1745156884919,3.81056,1578.3,1578.2,7.9558]
[1745156885912,3.81056,1578.3,1578.2,6.34]
[1745156888320,7.01836,1578.3,1578.2,2.228]
[1745156890327,3.81056,1578.3,1578.2,2.228]
[1745156891526,2.95336,1578.3,1578.2,2.228]
[1745156891824,2.95336,1578.3,1578.2,3.9818]
[1745156894024,2.95336,1578.3,1578.2,8.0938]
[1745156895422,2.95336,1578.3,1578.2,6.34]
[1745156899437,6.16116,1578.3,1578.2,6.34]
[1745156899638,6.16116,1578.3,1578.2,2.228]
[1745156904142,1.6862,1578.3,1578.2,2.228]
[1745156904333,2.95336,1578.3,1578.2,2.228]
[1745156904533,2.95336,1578.3,1578.2,3.8421]
[1745156909249,2.95336,1578.3,1578.2,7.9531]
[1745156911652,2.95336,1578.3,1578.2,6.339]